[Event "*** Titled Tuesday Blitz"]
[Site "Chess.com"]
[Date "2020.05.19"]
[Round "7"]
[White "MaxLeto"]
[Black "marszach123"]
[Result "0-1"]
[WhiteElo "2316"]
[BlackElo "2206"]
[TimeControl "180+1"]
[EndTime "13:19:26 PDT"]
[Termination "marszach123 won on time"]

1. g4 {[%clk 0:02:49]} 1... d5 {[%clk 0:02:58.6]} 2. Bg2 {[%clk 0:02:47.9]} 2...
Bxg4 {[%clk 0:02:57.5]} 3. c4 {[%clk 0:02:46.9]} 3... c6 {[%clk 0:02:55.9]} 4.
Qb3 {[%clk 0:02:46.1]} 4... Qb6 {[%clk 0:02:53.1]} 5. cxd5 {[%clk 0:02:35.6]}
5... Qxb3 {[%clk 0:02:49.7]} 6. axb3 {[%clk 0:02:36.5]} 6... cxd5 {[%clk
0:02:48]} 7. Bxd5 {[%clk 0:02:37.4]} 7... Nc6 {[%clk 0:02:48.4]} 8. Nc3 {[%clk
0:02:34.7]} 8... Nf6 {[%clk 0:02:48]} 9. Bc4 {[%clk 0:02:27.1]} 9... e6 {[%clk
0:02:40.8]} 10. e3 {[%clk 0:01:50.5]} 10... O-O-O {[%clk 0:02:35.9]} 11. d4
{[%clk 0:01:48.2]} 11... a6 {[%clk 0:02:23.5]} 12. Nge2 {[%clk 0:01:44.8]} 12...
Nb4 {[%clk 0:02:16.1]} 13. Ra5 {[%clk 0:00:44.1]} 13... b5 {[%clk 0:02:10.7]}
14. Nxb5 {[%clk 0:00:38]} 14... axb5 {[%clk 0:02:10.5]} 15. Rxb5 {[%clk
0:00:38.9]} 15... Bf3 {[%clk 0:01:56.6]} 16. Rg1 {[%clk 0:00:38.6]} 16... Bc6
{[%clk 0:01:42.1]} 17. Ra5 {[%clk 0:00:18.1]} 17... Bd6 {[%clk 0:01:42.2]} 18.
Bd2 {[%clk 0:00:16.7]} 18... Kc7 {[%clk 0:01:26.8]} 19. Rxg7 {[%clk 0:00:08.9]}
19... Be8 {[%clk 0:00:59.1]} 20. Bxe6 {[%clk 0:00:05.8]} 20... Nh5 {[%clk
0:00:50.8]} 21. Rgg5 {[%clk 0:00:04.1]} 21... fxe6 {[%clk 0:00:50.2]} 0-1

[Event "*** Titled Tuesday Blitz"]
[Site "Chess.com"]
[Date "2020.05.19"]
[Round "7"]
[White "gross-aleks"]
[Black "Last7Samurai"]
[Result "1-0"]
[WhiteElo "2587"]
[BlackElo "2804"]
[TimeControl "180+1"]
[EndTime "13:19:27 PDT"]
[Termination "gross-aleks won by resignation"]

1. c4 {[%clk 0:03:00.9]} 1... c6 {[%clk 0:02:56.7]} 2. Nf3 {[%clk 0:03:00.3]}
2... d5 {[%clk 0:02:56.7]} 3. e3 {[%clk 0:03:00.5]} 3... Nf6 {[%clk 0:02:56.8]}
4. Be2 {[%clk 0:02:59.9]} 4... e6 {[%clk 0:02:56.6]} 5. b3 {[%clk 0:02:59.1]}
5... Nbd7 {[%clk 0:02:56.5]} 6. Bb2 {[%clk 0:02:59.2]} 6... Bd6 {[%clk
0:02:56.5]} 7. O-O {[%clk 0:02:58.9]} 7... O-O {[%clk 0:02:56.5]} 8. d4 {[%clk
0:02:58]} 8... Re8 {[%clk 0:02:52.5]} 9. Ne5 {[%clk 0:02:57.6]} 9... Qc7 {[%clk
0:02:34.3]} 10. f4 {[%clk 0:02:55]} 10... b6 {[%clk 0:02:34.1]} 11. Nc3 {[%clk
0:02:51.2]} 11... Bb7 {[%clk 0:02:33.6]} 12. Rc1 {[%clk 0:02:47.1]} 12... a6
{[%clk 0:02:26.1]} 13. Bf3 {[%clk 0:02:38]} 13... Qd8 {[%clk 0:02:15.8]} 14. e4
{[%clk 0:02:31.7]} 14... c5 {[%clk 0:02:01]} 15. exd5 {[%clk 0:02:24.2]} 15...
exd5 {[%clk 0:01:50.7]} 16. Nxd5 {[%clk 0:01:58.5]} 16... Nxd5 {[%clk
0:01:24.5]} 17. cxd5 {[%clk 0:01:57.8]} 17... cxd4 {[%clk 0:01:18.7]} 18. Nc6
{[%clk 0:01:57.2]} 18... Qf6 {[%clk 0:01:14.7]} 19. Qxd4 {[%clk 0:01:49]} 19...
Bc5 {[%clk 0:01:01.4]} 20. Rxc5 {[%clk 0:01:48.5]} 20... Qxd4+ {[%clk
0:00:57.9]} 21. Bxd4 {[%clk 0:01:49.4]} 21... Nxc5 {[%clk 0:00:51.2]} 22. Bxc5
{[%clk 0:01:46.2]} 22... bxc5 {[%clk 0:00:52.1]} 23. Rc1 {[%clk 0:01:46.2]}
23... a5 {[%clk 0:00:34.2]} 24. Rxc5 {[%clk 0:01:36.6]} 24... a4 {[%clk
0:00:34.5]} 25. b4 {[%clk 0:01:26.4]} 25... a3 {[%clk 0:00:34.3]} 26. Kf2 {[%clk
0:01:25.1]} 26... Ra4 {[%clk 0:00:24]} 27. d6 {[%clk 0:01:19]} 27... Rf8 {[%clk
0:00:19.5]} 28. Ne7+ {[%clk 0:01:12.5]} 28... Kh8 {[%clk 0:00:19.1]} 29. Bxb7
{[%clk 0:01:12.2]} 29... Rxb4 {[%clk 0:00:19.8]} 30. Rc8 {[%clk 0:00:59.2]}
30... Rxc8 {[%clk 0:00:18.6]} 31. Bxc8 {[%clk 0:01:00]} 31... Rb2+ {[%clk
0:00:15.1]} 32. Ke3 {[%clk 0:00:59.8]} 32... Rxa2 {[%clk 0:00:13.4]} 33. d7
{[%clk 0:00:59.4]} 33... Rd2 {[%clk 0:00:13.9]} 34. Kxd2 {[%clk 0:00:59]} 1-0

[Event "*** Titled Tuesday Blitz"]
[Site "Chess.com"]
[Date "2020.05.19"]
[Round "7"]
[White "Nikolaj_6"]
[Black "Marty435"]
[Result "1-0"]
[WhiteElo "2565"]
[BlackElo "2410"]
[TimeControl "180+1"]
[EndTime "13:19:30 PDT"]
[Termination "Nikolaj_6 won by resignation"]

1. e4 {[%clk 0:03:00.9]} 1... c6 {[%clk 0:03:00.3]} 2. d4 {[%clk 0:03:00.7]}
2... d5 {[%clk 0:03:00.7]} 3. e5 {[%clk 0:03:01]} 3... Bf5 {[%clk 0:03:00.4]} 4.
h4 {[%clk 0:03:00.7]} 4... h5 {[%clk 0:02:59.9]} 5. c4 {[%clk 0:03:00.6]} 5...
e6 {[%clk 0:02:57.6]} 6. Nc3 {[%clk 0:02:59.6]} 6... Nd7 {[%clk 0:02:50.8]} 7.
Nge2 {[%clk 0:02:56.9]} 7... Be7 {[%clk 0:02:28.7]} 8. g3 {[%clk 0:02:51.6]}
8... Nh6 {[%clk 0:02:24.1]} 9. Bxh6 {[%clk 0:02:48.3]} 9... Rxh6 {[%clk
0:02:23.5]} 10. cxd5 {[%clk 0:02:48.2]} 10... cxd5 {[%clk 0:02:22.9]} 11. Nf4
{[%clk 0:02:48.1]} 11... Qb6 {[%clk 0:02:13.5]} 12. Qd2 {[%clk 0:02:43.1]} 12...
Rc8 {[%clk 0:01:57.7]} 13. Be2 {[%clk 0:02:42.7]} 13... Bg4 {[%clk 0:01:35.6]}
14. Bxg4 {[%clk 0:02:37.1]} 14... hxg4 {[%clk 0:01:36.5]} 15. O-O {[%clk
0:02:36.4]} 15... Rc4 {[%clk 0:01:28.6]} 16. Rfd1 {[%clk 0:02:29.4]} 16... Kf8
{[%clk 0:01:10.9]} 17. Rac1 {[%clk 0:02:25.9]} 17... Nb8 {[%clk 0:01:00.8]} 18.
b3 {[%clk 0:02:11.7]} 18... Rc6 {[%clk 0:00:57.6]} 19. Na4 {[%clk 0:02:00.1]}
19... Qc7 {[%clk 0:00:52.3]} 20. Nd3 {[%clk 0:01:59.9]} 20... Rxc1 {[%clk
0:00:31.6]} 21. Rxc1 {[%clk 0:01:59.4]} 21... Nc6 {[%clk 0:00:31.4]} 22. Ndc5
{[%clk 0:01:49.5]} 22... g5 {[%clk 0:00:24.8]} 23. hxg5 {[%clk 0:01:44.9]} 23...
Rg6 {[%clk 0:00:25]} 24. Qc3 {[%clk 0:01:41.4]} 24... Bxg5 {[%clk 0:00:23.5]}
25. Rc2 {[%clk 0:01:39.4]} 25... Bd8 {[%clk 0:00:03.1]} 26. Nxb7 {[%clk
0:01:36.6]} 26... Qxb7 {[%clk 0:00:02.8]} 27. Qxc6 {[%clk 0:01:36.5]} 27... Qxc6
{[%clk 0:00:03.3]} 28. Rxc6 {[%clk 0:01:36.2]} 28... Ke8 {[%clk 0:00:02.3]} 29.
Ra6 {[%clk 0:01:32.9]} 29... Kd7 {[%clk 0:00:01.4]} 30. Rxa7+ {[%clk 0:01:32.4]}
30... Ke8 {[%clk 0:00:02.3]} 31. Kf1 {[%clk 0:01:30.9]} 31... Rg5 {[%clk
0:00:02.6]} 32. Ke2 {[%clk 0:01:30.5]} 32... Rf5 {[%clk 0:00:03.2]} 33. Ra8
{[%clk 0:01:27.1]} 33... Kd7 {[%clk 0:00:02.5]} 34. Nc5+ {[%clk 0:01:26.7]}
34... Ke7 {[%clk 0:00:03.1]} 35. Ra7+ {[%clk 0:01:25.9]} 35... Ke8 {[%clk
0:00:03.6]} 36. Rb7 {[%clk 0:01:23.1]} 36... Rf3 {[%clk 0:00:02.8]} 37. Nd3
{[%clk 0:01:20.3]} 37... Bg5 {[%clk 0:00:01.6]} 38. a4 {[%clk 0:01:18.7]} 38...
Rf5 {[%clk 0:00:01.2]} 39. a5 {[%clk 0:01:18.4]} 39... Bd8 {[%clk 0:00:01.9]}
40. b4 {[%clk 0:01:17.8]} 1-0

[Event "*** Titled Tuesday Blitz"]
[Site "Chess.com"]
[Date "2020.05.19"]
[Round "7"]
[White "Jadeit90"]
[Black "cukin84"]
[Result "0-1"]
[WhiteElo "2299"]
[BlackElo "2156"]
[TimeControl "180+1"]
[EndTime "13:19:32 PDT"]
[Termination "cukin84 won by checkmate"]

1. g3 {[%clk 0:03:00.9]} 1... f5 {[%clk 0:02:58.5]} 2. Bg2 {[%clk 0:03:01.4]}
2... Nf6 {[%clk 0:02:58.2]} 3. Nf3 {[%clk 0:03:01.8]} 3... g6 {[%clk 0:02:58.3]}
4. O-O {[%clk 0:03:02.7]} 4... Bg7 {[%clk 0:02:58.6]} 5. d4 {[%clk 0:03:03.6]}
5... O-O {[%clk 0:02:58.5]} 6. c4 {[%clk 0:03:04.5]} 6... d6 {[%clk 0:02:58.8]}
7. Nc3 {[%clk 0:03:05.1]} 7... Qe8 {[%clk 0:02:59.2]} 8. d5 {[%clk 0:03:05.6]}
8... a5 {[%clk 0:02:58.9]} 9. Nd4 {[%clk 0:03:05.1]} 9... Na6 {[%clk 0:02:58.6]}
10. b3 {[%clk 0:03:03.3]} 10... Bd7 {[%clk 0:02:58.4]} 11. Bb2 {[%clk
0:03:03.6]} 11... Rb8 {[%clk 0:02:57.3]} 12. Qd2 {[%clk 0:02:57.6]} 12... h6
{[%clk 0:02:56.5]} 13. Ncb5 {[%clk 0:02:57.8]} 13... c6 {[%clk 0:02:52.3]} 14.
dxc6 {[%clk 0:02:56.9]} 14... bxc6 {[%clk 0:02:52.3]} 15. Nc3 {[%clk 0:02:48.8]}
15... g5 {[%clk 0:02:28.6]} 16. e3 {[%clk 0:02:29.7]} 16... e5 {[%clk 0:02:27]}
17. Nde2 {[%clk 0:02:28.7]} 17... Qe7 {[%clk 0:02:21]} 18. Rfd1 {[%clk
0:02:28.4]} 18... Ne8 {[%clk 0:02:19.2]} 19. Na4 {[%clk 0:02:13.7]} 19... f4
{[%clk 0:02:03.8]} 20. exf4 {[%clk 0:02:05.7]} 20... gxf4 {[%clk 0:02:03.2]} 21.
Qxa5 {[%clk 0:01:55.3]} 21... Nb4 {[%clk 0:01:59]} 22. Nec3 {[%clk 0:01:38.5]}
22... Qf7 {[%clk 0:01:39.7]} 23. Rf1 {[%clk 0:01:07.3]} 23... Nc2 {[%clk
0:01:37.5]} 24. Rac1 {[%clk 0:01:02.8]} 24... Nd4 {[%clk 0:01:37.6]} 25. Qa7
{[%clk 0:00:22.4]} 25... Qf5 {[%clk 0:01:32.2]} 26. Qxb8 {[%clk 0:00:20]} 26...
Qh5 {[%clk 0:01:19.1]} 27. Qd8 {[%clk 0:00:15.8]} 27... Nf6 {[%clk 0:01:17.5]}
28. Qe7 {[%clk 0:00:14.8]} 28... Nf5 {[%clk 0:01:11.7]} 29. Qxf8+ {[%clk
0:00:12.9]} 29... Bxf8 {[%clk 0:01:11.3]} 30. Ne4 {[%clk 0:00:13.8]} 30... Nxe4
{[%clk 0:01:11]} 31. Bxe4 {[%clk 0:00:14.7]} 31... Bg7 {[%clk 0:01:05.1]} 32.
Rcd1 {[%clk 0:00:13.4]} 32... f3 {[%clk 0:01:03.5]} 33. Rd3 {[%clk 0:00:13]}
33... Nh4 {[%clk 0:01:01.3]} 34. gxh4 {[%clk 0:00:11.4]} 34... Qg4+ {[%clk
0:01:00.7]} 35. Kh1 {[%clk 0:00:11.7]} 35... Qg2# {[%clk 0:01:00.9]} 0-1

[Event "*** Titled Tuesday Blitz"]
[Site "Chess.com"]
[Date "2020.05.19"]
[Round "7"]
[White "wnstop"]
[Black "mamey78"]
[Result "1-0"]
[WhiteElo "2623"]
[BlackElo "2389"]
[TimeControl "180+1"]
[EndTime "13:19:33 PDT"]
[Termination "wnstop won by resignation"]

1. e4 {[%clk 0:03:00.9]} 1... e5 {[%clk 0:02:58.5]} 2. Nf3 {[%clk 0:03:00.5]}
2... Nc6 {[%clk 0:02:58.5]} 3. Bc4 {[%clk 0:03:01]} 3... Nf6 {[%clk 0:02:57.4]}
4. d3 {[%clk 0:03:01.2]} 4... Be7 {[%clk 0:02:57.4]} 5. O-O {[%clk 0:03:00.9]}
5... O-O {[%clk 0:02:57.7]} 6. Re1 {[%clk 0:03:01.4]} 6... d6 {[%clk 0:02:57.2]}
7. a4 {[%clk 0:02:58.7]} 7... Kh8 {[%clk 0:02:57.2]} 8. h3 {[%clk 0:02:51.8]}
8... Ng8 {[%clk 0:02:56.3]} 9. Nc3 {[%clk 0:02:51.5]} 9... f5 {[%clk 0:02:56.5]}
10. exf5 {[%clk 0:02:50.3]} 10... Bxf5 {[%clk 0:02:53.2]} 11. Nd5 {[%clk
0:02:50.6]} 11... Rf6 {[%clk 0:02:38.4]} 12. Nxf6 {[%clk 0:02:46.3]} 12... Nxf6
{[%clk 0:02:34]} 13. Ng5 {[%clk 0:02:45.1]} 13... Bg6 {[%clk 0:02:27.5]} 14. Bf7
{[%clk 0:02:35.3]} 14... Ng8 {[%clk 0:02:02.3]} 15. Bxg6 {[%clk 0:02:06]} 15...
Bxg5 {[%clk 0:02:00.4]} 16. Bxg5 {[%clk 0:01:52.2]} 16... Qxg5 {[%clk
0:01:56.5]} 17. Be4 {[%clk 0:01:52.4]} 17... Nd4 {[%clk 0:01:51.1]} 18. c3
{[%clk 0:01:50.7]} 18... Ne6 {[%clk 0:01:50]} 19. Qg4 {[%clk 0:01:48.6]} 19...
Qh6 {[%clk 0:01:43]} 20. a5 {[%clk 0:01:32.4]} 20... Rf8 {[%clk 0:01:13.8]} 21.
Bxb7 {[%clk 0:01:17.8]} 21... Rf4 {[%clk 0:01:04.8]} 22. Qg3 {[%clk 0:01:17]}
22... Nf6 {[%clk 0:01:04.2]} 23. d4 {[%clk 0:01:04.2]} 23... Nh5 {[%clk
0:00:52.1]} 24. Qe3 {[%clk 0:01:02.1]} 24... Qg6 {[%clk 0:00:25.6]} 25. dxe5
{[%clk 0:00:58.9]} 25... d5 {[%clk 0:00:20.5]} 26. Bxd5 {[%clk 0:00:57.8]} 26...
Ng5 {[%clk 0:00:20.7]} 27. e6 {[%clk 0:00:46.1]} 1-0

[Event "*** Titled Tuesday Blitz"]
[Site "Chess.com"]
[Date "2020.05.19"]
[Round "7"]
[White "powermove"]
[Black "H3nriqueTV"]
[Result "1-0"]
[WhiteElo "1698"]
[BlackElo "2087"]
[TimeControl "180+1"]
[EndTime "13:19:33 PDT"]
[Termination "powermove won by resignation"]

1. Nf3 {[%clk 0:03:00.9]} 1... d5 {[%clk 0:02:57.5]} 2. g3 {[%clk 0:03:00.7]}
2... Bf5 {[%clk 0:02:57.2]} 3. Bg2 {[%clk 0:03:00.3]} 3... e6 {[%clk 0:02:57.6]}
4. O-O {[%clk 0:02:59.7]} 4... c6 {[%clk 0:02:58.3]} 5. d3 {[%clk 0:02:59.3]}
5... h6 {[%clk 0:02:58.5]} 6. Nbd2 {[%clk 0:02:59.4]} 6... Nf6 {[%clk
0:02:58.8]} 7. Qe1 {[%clk 0:02:53.2]} 7... Be7 {[%clk 0:02:57.1]} 8. e4 {[%clk
0:02:53.1]} 8... dxe4 {[%clk 0:02:58]} 9. dxe4 {[%clk 0:02:52.7]} 9... Bh7
{[%clk 0:02:57]} 10. Qe2 {[%clk 0:02:46]} 10... O-O {[%clk 0:02:54.4]} 11. b3
{[%clk 0:02:39.8]} 11... Nbd7 {[%clk 0:02:54.7]} 12. Bb2 {[%clk 0:02:38]} 12...
a5 {[%clk 0:02:33.4]} 13. a4 {[%clk 0:02:24.8]} 13... Qc7 {[%clk 0:02:31.6]} 14.
Rac1 {[%clk 0:02:16.9]} 14... Rad8 {[%clk 0:02:27.3]} 15. Nc4 {[%clk 0:02:06]}
15... Bxe4 {[%clk 0:02:16.8]} 16. Nfe5 {[%clk 0:01:57]} 16... Bxg2 {[%clk
0:02:15]} 17. Kxg2 {[%clk 0:01:56]} 17... b5 {[%clk 0:02:11.2]} 18. axb5 {[%clk
0:01:48.9]} 18... cxb5 {[%clk 0:02:12.1]} 19. Nxd7 {[%clk 0:01:48.2]} 19... Rxd7
{[%clk 0:02:07]} 20. Ne5 {[%clk 0:01:47.1]} 20... Qb7+ {[%clk 0:01:55.5]} 21.
Kg1 {[%clk 0:01:42.3]} 21... Rc7 {[%clk 0:01:54.8]} 22. Rfd1 {[%clk 0:01:25.8]}
22... Rfc8 {[%clk 0:01:23.9]} 23. c4 {[%clk 0:01:21.3]} 23... bxc4 {[%clk
0:01:22.7]} 24. bxc4 {[%clk 0:01:20.4]} 24... a4 {[%clk 0:01:18.8]} 25. h4
{[%clk 0:01:10.3]} 25... a3 {[%clk 0:01:13.6]} 26. Ba1 {[%clk 0:01:09.4]} 26...
Qb3 {[%clk 0:01:09.3]} 27. Rd4 {[%clk 0:01:04.4]} 27... a2 {[%clk 0:01:04.9]}
28. g4 {[%clk 0:00:56.5]} 28... Qh3 {[%clk 0:00:47.9]} 29. g5 {[%clk 0:00:55.3]}
29... hxg5 {[%clk 0:00:35.3]} 30. hxg5 {[%clk 0:00:55.2]} 30... Nh7 {[%clk
0:00:35.7]} 31. g6 {[%clk 0:00:55]} 31... f6 {[%clk 0:00:34.9]} 32. gxh7+ {[%clk
0:00:53.4]} 32... Qxh7 {[%clk 0:00:32.4]} 33. Nf3 {[%clk 0:00:49.9]} 33... Rc5
{[%clk 0:00:32.6]} 34. Qxe6+ {[%clk 0:00:48.8]} 34... Kh8 {[%clk 0:00:33]} 35.
Rh4 {[%clk 0:00:46.9]} 35... Rh5 {[%clk 0:00:32.6]} 36. Qxc8+ {[%clk 0:00:46.2]}
1-0

[Event "*** Titled Tuesday Blitz"]
[Site "Chess.com"]
[Date "2020.05.19"]
[Round "7"]
[White "Keks2017"]
[Black "Khamrakulov_Djurabek"]
[Result "0-1"]
[WhiteElo "2513"]
[BlackElo "2789"]
[TimeControl "180+1"]
[EndTime "13:19:37 PDT"]
[Termination "Khamrakulov_Djurabek won by resignation"]

1. e4 {[%clk 0:03:00.1]} 1... c6 {[%clk 0:02:59.4]} 2. d3 {[%clk 0:03:00]} 2...
d5 {[%clk 0:02:59.6]} 3. Nd2 {[%clk 0:03:00]} 3... g6 {[%clk 0:03:00.1]} 4. Ngf3
{[%clk 0:02:59.5]} 4... Bg7 {[%clk 0:03:00.6]} 5. g3 {[%clk 0:02:59.7]} 5... Nf6
{[%clk 0:03:01]} 6. Bg2 {[%clk 0:02:59.7]} 6... O-O {[%clk 0:03:01.6]} 7. O-O
{[%clk 0:02:59.8]} 7... b6 {[%clk 0:02:58.5]} 8. Re1 {[%clk 0:02:59.4]} 8... e6
{[%clk 0:02:56.2]} 9. c3 {[%clk 0:02:55.1]} 9... a5 {[%clk 0:02:55.9]} 10. e5
{[%clk 0:02:51.7]} 10... Nfd7 {[%clk 0:02:56]} 11. Nf1 {[%clk 0:02:51.8]} 11...
c5 {[%clk 0:02:56.1]} 12. a4 {[%clk 0:02:51.2]} 12... Nc6 {[%clk 0:02:56]} 13.
Bf4 {[%clk 0:02:50.9]} 13... h6 {[%clk 0:02:52.5]} 14. h4 {[%clk 0:02:50.8]}
14... Ba6 {[%clk 0:02:49]} 15. N1h2 {[%clk 0:02:50.5]} 15... Rc8 {[%clk
0:02:44.9]} 16. Ng4 {[%clk 0:02:50.3]} 16... h5 {[%clk 0:02:44.3]} 17. Ngh2
{[%clk 0:02:49.2]} 17... d4 {[%clk 0:02:43]} 18. c4 {[%clk 0:02:48.5]} 18... Bb7
{[%clk 0:02:38.2]} 19. b3 {[%clk 0:02:24.5]} 19... Qc7 {[%clk 0:02:33.1]} 20.
Qe2 {[%clk 0:02:23.7]} 20... Ne7 {[%clk 0:02:33.1]} 21. Rad1 {[%clk 0:02:20.9]}
21... Nf5 {[%clk 0:02:32.7]} 22. Ng5 {[%clk 0:02:13.9]} 22... Bxg2 {[%clk
0:02:31.1]} 23. Kxg2 {[%clk 0:02:13.9]} 23... Rce8 {[%clk 0:02:25.1]} 24. Nhf3
{[%clk 0:02:04]} 24... Nh6 {[%clk 0:02:20.5]} 25. Nh2 {[%clk 0:01:51.5]} 25...
Nf5 {[%clk 0:02:19.6]} 26. Nhf3 {[%clk 0:01:50.8]} 26... Ne7 {[%clk 0:02:19.7]}
27. Ne4 {[%clk 0:01:17.6]} 27... Nc6 {[%clk 0:02:18.4]} 28. Nd6 {[%clk
0:01:13.9]} 28... Rd8 {[%clk 0:02:18.4]} 29. Nb5 {[%clk 0:01:13.5]} 29... Qb7
{[%clk 0:02:17.8]} 30. Kg1 {[%clk 0:01:13.1]} 30... Nb4 {[%clk 0:02:12.3]} 31.
Rd2 {[%clk 0:01:10.9]} 31... Qb8 {[%clk 0:02:06.3]} 32. Qe4 {[%clk 0:01:09]}
32... Rfe8 {[%clk 0:02:00.5]} 33. Ng5 {[%clk 0:01:06.8]} 33... Re7 {[%clk
0:01:55.9]} 34. f3 {[%clk 0:01:06.5]} 34... Qa8 {[%clk 0:01:54]} 35. g4 {[%clk
0:01:02.5]} 35... hxg4 {[%clk 0:01:50.5]} 36. fxg4 {[%clk 0:01:01.8]} 36... Qxe4
{[%clk 0:01:50]} 37. Rxe4 {[%clk 0:01:01.1]} 37... Nc6 {[%clk 0:01:49.6]} 38.
Nf3 {[%clk 0:00:55.3]} 38... f5 {[%clk 0:01:49.2]} 39. exf6 {[%clk 0:00:55.1]}
39... Nxf6 {[%clk 0:01:49.3]} 40. Re1 {[%clk 0:00:52.3]} 40... Nxg4 {[%clk
0:01:49.2]} 41. Bg5 {[%clk 0:00:47.7]} 41... Bf6 {[%clk 0:01:49.2]} 42. Bxf6
{[%clk 0:00:47.2]} 42... Nxf6 {[%clk 0:01:49]} 43. Rde2 {[%clk 0:00:47.2]} 43...
e5 {[%clk 0:01:34.2]} 44. Ng5 {[%clk 0:00:41.9]} 44... Ng4 {[%clk 0:01:31]} 45.
Ne4 {[%clk 0:00:37.5]} 45... Ne3 {[%clk 0:01:30]} 46. Rf2 {[%clk 0:00:33.9]}
46... Rf8 {[%clk 0:01:27.6]} 47. Rxf8+ {[%clk 0:00:31.4]} 47... Kxf8 {[%clk
0:01:28.5]} 48. Re2 {[%clk 0:00:31.5]} 48... Nb4 {[%clk 0:01:26.4]} 49. Rf2+
{[%clk 0:00:28.6]} 49... Kg7 {[%clk 0:01:26]} 50. Rd2 {[%clk 0:00:25.1]} 50...
Rf7 {[%clk 0:01:25.9]} 51. Nbd6 {[%clk 0:00:24.4]} 51... Rf1+ {[%clk 0:01:25.1]}
52. Kh2 {[%clk 0:00:23.9]} 52... Rf4 {[%clk 0:01:24.5]} 53. Kg3 {[%clk
0:00:23.5]} 53... Nf1+ {[%clk 0:01:24.3]} 0-1

[Event "*** Titled Tuesday Blitz"]
[Site "Chess.com"]
[Date "2020.05.19"]
[Round "7"]
[White "ClassyEl"]
[Black "SHIVACalypso"]
[Result "1-0"]
[WhiteElo "2485"]
[BlackElo "2301"]
[TimeControl "180+1"]
[EndTime "13:19:42 PDT"]
[Termination "ClassyEl won by resignation"]

1. d4 {[%clk 0:03:00.9]} 1... e6 {[%clk 0:02:59.6]} 2. Nf3 {[%clk 0:02:59.5]}
2... Nf6 {[%clk 0:02:59.8]} 3. e3 {[%clk 0:02:58.1]} 3... d5 {[%clk 0:02:59.8]}
4. c4 {[%clk 0:02:52.2]} 4... Be7 {[%clk 0:02:55.9]} 5. Nc3 {[%clk 0:02:51.9]}
5... O-O {[%clk 0:02:55.2]} 6. Bd3 {[%clk 0:02:51.4]} 6... c5 {[%clk 0:02:52.3]}
7. O-O {[%clk 0:02:50.6]} 7... Nc6 {[%clk 0:02:51.4]} 8. cxd5 {[%clk 0:02:47.6]}
8... Nxd5 {[%clk 0:02:50.2]} 9. a3 {[%clk 0:02:42.9]} 9... Nxc3 {[%clk
0:02:27.3]} 10. bxc3 {[%clk 0:02:41.6]} 10... b6 {[%clk 0:02:27.5]} 11. a4
{[%clk 0:02:35.2]} 11... Bb7 {[%clk 0:02:23.9]} 12. Qe2 {[%clk 0:02:29.1]} 12...
Na5 {[%clk 0:02:19.8]} 13. Bb2 {[%clk 0:02:28.1]} 13... Rc8 {[%clk 0:02:17.8]}
14. e4 {[%clk 0:02:23.4]} 14... Bf6 {[%clk 0:01:52.3]} 15. Rad1 {[%clk
0:02:17.1]} 15... Qd7 {[%clk 0:01:32.3]} 16. Bb5 {[%clk 0:01:53.6]} 16... Qc7
{[%clk 0:01:32]} 17. h4 {[%clk 0:01:44.1]} 17... c4 {[%clk 0:01:28.9]} 18. d5
{[%clk 0:01:33.8]} 18... a6 {[%clk 0:01:24.4]} 19. e5 {[%clk 0:01:28]} 19...
Bxh4 {[%clk 0:01:03.8]} 20. Nxh4 {[%clk 0:01:22.7]} 20... axb5 {[%clk 0:01:03]}
21. dxe6 {[%clk 0:01:19.3]} 21... bxa4 {[%clk 0:00:59.7]} 22. Ba3 {[%clk
0:01:18.3]} 22... Rfe8 {[%clk 0:00:56.6]} 23. e7 {[%clk 0:01:18.4]} 23... Rxe7
{[%clk 0:00:41.8]} 24. Bxe7 {[%clk 0:00:56.6]} 24... Qxe7 {[%clk 0:00:42.7]} 25.
Qg4 {[%clk 0:00:56.9]} 25... Qe6 {[%clk 0:00:20.2]} 26. Nf5 {[%clk 0:00:54.5]}
26... g6 {[%clk 0:00:20.5]} 27. Nh6+ {[%clk 0:00:50]} 27... Kg7 {[%clk
0:00:19.7]} 28. Qxe6 {[%clk 0:00:47.7]} 28... fxe6 {[%clk 0:00:19.8]} 29. Ng4
{[%clk 0:00:46]} 29... Rc7 {[%clk 0:00:18.9]} 30. Nf6 {[%clk 0:00:44.5]} 30...
Nb3 {[%clk 0:00:17.8]} 31. Ne8+ {[%clk 0:00:35.7]} 1-0

[Event "*** Titled Tuesday Blitz"]
[Site "Chess.com"]
[Date "2020.05.19"]
[Round "7"]
[White "Glidzhian_Gor"]
[Black "Hippotaner"]
[Result "1-0"]
[WhiteElo "2464"]
[BlackElo "2314"]
[TimeControl "180+1"]
[EndTime "13:19:42 PDT"]
[Termination "Glidzhian_Gor won by checkmate"]

1. e4 {[%clk 0:03:00.9]} 1... c5 {[%clk 0:02:58.3]} 2. d4 {[%clk 0:03:01.2]}
2... cxd4 {[%clk 0:02:55.7]} 3. c3 {[%clk 0:03:01.1]} 3... d3 {[%clk 0:02:56.2]}
4. Bxd3 {[%clk 0:03:00.9]} 4... Nc6 {[%clk 0:02:56.8]} 5. Nf3 {[%clk 0:03:01]}
5... e5 {[%clk 0:02:55.7]} 6. O-O {[%clk 0:03:01.2]} 6... Nf6 {[%clk 0:02:53.2]}
7. Bc4 {[%clk 0:03:01.2]} 7... Bc5 {[%clk 0:02:51]} 8. b4 {[%clk 0:02:59.6]}
8... Bb6 {[%clk 0:02:49.9]} 9. b5 {[%clk 0:02:59.9]} 9... Na5 {[%clk 0:02:49.5]}
10. Nxe5 {[%clk 0:02:56.7]} 10... Nxc4 {[%clk 0:02:49]} 11. Nxc4 {[%clk
0:02:57.6]} 11... O-O {[%clk 0:02:48.6]} 12. e5 {[%clk 0:02:57.6]} 12... Ne4
{[%clk 0:02:47.1]} 13. Nxb6 {[%clk 0:02:48.9]} 13... Qxb6 {[%clk 0:02:46.2]} 14.
Qd5 {[%clk 0:02:47.1]} 14... Qg6 {[%clk 0:02:35.7]} 15. Be3 {[%clk 0:01:53.1]}
15... d6 {[%clk 0:02:33]} 16. f3 {[%clk 0:01:49.2]} 16... Bh3 {[%clk 0:02:32.6]}
17. g4 {[%clk 0:01:42.3]} 17... Bxf1 {[%clk 0:02:25.4]} 18. Kxf1 {[%clk
0:01:39.9]} 18... Ng5 {[%clk 0:02:20.7]} 19. exd6 {[%clk 0:01:39.2]} 19... Ne6
{[%clk 0:02:07.2]} 20. Nd2 {[%clk 0:01:37.1]} 20... Rfd8 {[%clk 0:02:05.4]} 21.
Ne4 {[%clk 0:01:37.1]} 21... Rd7 {[%clk 0:01:38.5]} 22. h4 {[%clk 0:01:36.5]}
22... h5 {[%clk 0:01:26.6]} 23. gxh5 {[%clk 0:01:36.7]} 23... Qh7 {[%clk
0:01:26.8]} 24. h6 {[%clk 0:01:37.1]} 24... Rad8 {[%clk 0:01:08.1]} 25. hxg7
{[%clk 0:01:36.6]} 25... Qxh4 {[%clk 0:01:06.5]} 26. Qe5 {[%clk 0:01:16]} 26...
Qh1+ {[%clk 0:00:51.2]} 27. Kf2 {[%clk 0:01:03.4]} 27... Qh4+ {[%clk 0:00:24.8]}
28. Ke2 {[%clk 0:01:00.2]} 28... f6 {[%clk 0:00:11.9]} 29. Qxe6+ {[%clk
0:00:53.7]} 29... Rf7 {[%clk 0:00:10.8]} 30. Rg1 {[%clk 0:00:48.4]} 30... Qh2+
{[%clk 0:00:10.4]} 31. Bf2 {[%clk 0:00:45.3]} 31... f5 {[%clk 0:00:10.8]} 32.
Nf6# {[%clk 0:00:43.9]} 1-0